fUST/lending_fUST_20241201
["ID","MTS","AMOUNT","RATE_DAILY","PERIOD"]
[343915475,1733058650588,-500.0,0.00028493,3]
[343915476,1733058650600,-500.0,0.00028493,3]
[343915477,1733058650610,-500.0,0.00028493,3]
[343915478,1733058650621,-500.0,0.00028493,3]
[343915479,1733058650633,-500.0,0.00028493,3]
[343915480,1733058650644,-500.0,0.00028493,3]
[343915481,1733058650656,-500.0,0.00028493,3]
[343915482,1733058650668,-500.0,0.00028493,3]
[343915483,1733058650679,-500.0,0.00028493,3]
[343915484,1733058650691,-359.35884567,0.00028493,3]
[343915485,1733058650702,-500.0,0.00028493,3]
[343915486,1733058650712,-500.0,0.00028493,3]
[343915487,1733058650724,-500.0,0.00028493,3]
[343915488,1733058650735,-500.0,0.00028493,3]
[343915489,1733058650747,-792.5,0.00028493,3]
[343915490,1733058650758,-500.0,0.00028493,3]
[343915491,1733058650770,-534.34,0.00028493,3]
[343915492,1733058650783,-500.0,0.00028493,3]
[343915493,1733058650794,-500.0,0.00028493,3]
[343915494,1733058650805,-540.50058052,0.00028493,3]
[343915495,1733058650816,-500.0,0.00028493,3]
[343915496,1733058650827,-500.0,0.00028493,3]
[343915497,1733058650839,-174.21499882,0.00028493,3]
[343915498,1733058650850,-673.25,0.00028493,3]
[343915499,1733058650862,-500.0,0.00028493,3]
[343915500,1733058650874,-500.0,0.00028493,3]
[343915501,1733058650883,-500.0,0.00028493,3]
[343915502,1733058650893,-42362.14,0.00028493,3]
[343915503,1733058650902,-500.0,0.00028493,3]
[343915504,1733058651015,-500.0,0.00028493,3]
[343915505,1733058651025,-500.0,0.00028493,3]
[343915506,1733058651038,-500.0,0.00028493,3]
[343915507,1733058651050,-229.21493961,0.00028493,3]
[343915508,1733058651059,-500.0,0.00028493,3]
[343915509,1733058651068,-500.0,0.00028493,3]
[343915510,1733058651078,-500.0,0.00028493,3]
[343915511,1733058651088,-592.12,0.00028493,3]
[343915512,1733058651099,-500.0,0.00028493,3]
[343915513,1733058651111,-500.0,0.00028493,3]
[343915514,1733058651126,-1267.84,0.00028493,3]
[343915515,1733058651137,-500.0,0.00028493,3]
[343915516,1733058651146,-589.66,0.00028493,3]
[343915517,1733058651157,-500.0,0.00028493,3]
[343915518,1733058651166,-500.0,0.00028493,3]
[343915519,1733058651175,-500.0,0.00028493,3]
[343915520,1733058651184,-568.65,0.00028493,3]
[343915521,1733058651194,-500.0,0.00028493,3]
[343915522,1733058651203,-500.0,0.00028493,3]
[343915523,1733058651213,-500.0,0.00028493,3]
[343915524,1733058651222,-500.0,0.00028493,3]
[343915525,1733058651231,-500.0,0.00028493,3]
[343915526,1733058651240,-500.0,0.00028493,3]
[343915527,1733058651249,-508.24,0.00028493,3]
[343915528,1733058651259,-500.0,0.00028493,3]
[343915529,1733058651268,-500.0,0.00028493,3]
[343915530,1733058651278,-500.0,0.00028493,3]
[343915531,1733058651288,-500.0,0.00028493,3]
[343915532,1733058651297,-500.0,0.00028493,2]
[343915533,1733058651306,-500.0,0.00028493,3]
[343915534,1733058651316,-300.0,0.000285,2]
[343915535,1733058651326,-479.75,0.000285,31]
[343915536,1733058651335,-479.75,0.000285,31]
[343915537,1733058651344,-479.75,0.000285,31]
[343915538,1733058651354,-479.75,0.000285,31]
[343915539,1733058651363,-479.75,0.000285,31]
[343915540,1733058651372,-479.75,0.000285,31]
[343915541,1733058651382,-479.75,0.000285,31]
[343915542,1733058651392,-479.75,0.000285,31]
[343915543,1733058651401,-479.75,0.000285,31]
[343915544,1733058651411,-479.75,0.000285,31]
[343915545,1733058651420,-479.75,0.000285,31]
[343915546,1733058651430,-479.75,0.000285,31]
[343915547,1733058651439,-479.75,0.000285,31]
[343915548,1733058651449,-479.75,0.000285,31]
[343915549,1733058651458,-479.75,0.000285,31]
[343915550,1733058651467,-479.75,0.000285,31]
[343915551,1733058651476,-479.75,0.000285,31]
[343915552,1733058651486,-479.75,0.000285,31]
[343915553,1733058651495,-479.75,0.000285,31]
[343915554,1733058651504,-479.75,0.000285,31]
[343915555,1733058651514,-479.75,0.000285,31]
[343915556,1733058651523,-479.75,0.000285,31]
[343915557,1733058651534,-479.75,0.000285,31]
[343915558,1733058651544,-479.75,0.000285,31]
[343915559,1733058651553,-886.24367263,0.00028595,2]
[343915560,1733058651562,-1035.1731449,0.00028609,2]
[343915561,1733058651571,-400.292894,0.00028651,2]
[343915562,1733058651580,-250.610952,0.00028651,2]
[343915563,1733058651590,-500.0,0.00028651,3]
[343915564,1733058651599,-176.981131,0.00028693,2]
[343915565,1733058651609,-150.2,0.00028767,7]
[343915566,1733058651618,-500.0,0.00028767,3]
[343915567,1733058651627,-500.0,0.00028767,3]
[343915568,1733058651636,-500.0,0.00028767,3]
[343915569,1733058651646,-500.0,0.00028767,3]
[343915570,1733058651655,-599.88788878,0.00028767,3]
[343915571,1733058651665,-500.0,0.00028767,3]
[343915572,1733058651675,-973.19,0.00028767,3]
[343915573,1733058651685,-500.0,0.00028767,3]
[343915574,1733058651695,-500.0,0.00028767,4]
[343915575,1733058651705,-850.06,0.00028767,3]
[343915576,1733058651715,-571.83,0.00028767,3]
[343915577,1733058651724,-500.0,0.00028767,3]
[343915578,1733058651733,-500.0,0.00028767,3]
[343915579,1733058651742,-500.0,0.00028767,3]
[343915580,1733058651751,-500.0,0.00028767,3]
[343915581,1733058651760,-500.0,0.00028767,3]
[343915582,1733058651770,-500.0,0.00028767,3]
[343915583,1733058651780,-560.72,0.00028767,3]
[343915584,1733058651790,-500.0,0.00028767,3]
[343915585,1733058651799,-500.0,0.00028767,3]
[343915586,1733058651809,-500.0,0.00028767,3]
[343915587,1733058651819,-931.98,0.00028767,3]
[343915588,1733058651829,-726.01,0.00028767,3]
[343915589,1733058651838,-990.72,0.00028767,3]
[343915590,1733058651847,-500.0,0.00028767,3]
[343915591,1733058651857,-506.91,0.00028767,3]
[343915592,1733058651866,-500.0,0.00028767,3]
[343915593,1733058651876,-500.0,0.00028767,3]
[343915594,1733058651885,-500.0,0.00028767,3]
[343915595,1733058651894,-500.0,0.00028767,3]
[343915596,1733058651904,-500.0,0.00028767,3]
[343915597,1733058651913,-1077.88,0.00028767,3]
[343915598,1733058651922,-500.0,0.00028767,3]
[343915599,1733058651932,-200.0,0.00028767,3]
[343915600,1733058651942,-500.0,0.00028767,3]
[343915601,1733058651951,-500.0,0.00028767,3]
[343915602,1733058651960,-500.0,0.00028767,3]
[343915603,1733058651969,-500.0,0.00028767,3]
[343915604,1733058651979,-430.00780353,0.00028767,3]
[343915605,1733058651988,-298.87125469,0.00028767,3]
[343915606,1733058651999,-500.0,0.00028767,3]
[343915607,1733058652008,-500.0,0.00028767,3]
[343915608,1733058652018,-500.0,0.00028767,3]
[343915609,1733058652030,-500.0,0.00028767,3]
[343915610,1733058652042,-500.0,0.00028767,3]
[343915611,1733058652051,-500.0,0.00028767,3]
[343915612,1733058652062,-500.0,0.00028767,3]
[343915613,1733058652071,-500.0,0.00028767,3]
[343915614,1733058652082,-500.0,0.00028767,3]
[343915615,1733058652091,-500.0,0.00028767,3]
[343915616,1733058652100,-500.0,0.00028767,3]
[343915617,1733058652110,-500.0,0.00028767,3]
[343915618,1733058652120,-500.0,0.00028767,3]
[343915619,1733058652130,-500.0,0.00028767,3]
[343915620,1733058652139,-792.5,0.00028767,3]
[343915621,1733058652149,-500.0,0.00028767,3]
[343915622,1733058652159,-534.34,0.00028767,3]
[343915623,1733058652170,-500.0,0.00028767,3]
[343915624,1733058652180,-500.0,0.00028767,3]
[343915625,1733058652190,-500.0,0.00028767,3]
[343915626,1733058652200,-500.0,0.00028767,3]
[343915627,1733058652210,-673.25,0.00028767,3]
[343915628,1733058652219,-194.8591485,0.00028767,3]
[343915629,1733058652229,-500.0,0.00028767,3]
[343915630,1733058652239,-500.0,0.00028767,3]
[343915631,1733058652248,-42362.14,0.00028767,3]
[343915632,1733058652259,-548.93657184,0.00028767,3]
[343915633,1733058652269,-500.0,0.00028767,3]
[343915634,1733058652278,-151.0,0.00028767,7]
[343915635,1733058652288,-500.0,0.00028767,3]
[343915636,1733058652298,-500.0,0.00028767,3]
[343915637,1733058652307,-509.70058836,0.00028767,3]
[343915638,1733058652316,-500.0,0.00028767,3]
[343915639,1733058652326,-500.0,0.00028767,3]
[343915640,1733058652336,-592.12,0.00028767,3]
[343915641,1733058652346,-500.0,0.00028767,3]
[343915642,1733058652355,-513.20656209,0.00028767,3]
[343915643,1733058652365,-1267.84,0.00028767,3]
[343915644,1733058652375,-500.0,0.00028767,3]
[343915645,1733058652384,-589.66,0.00028767,3]
[343915646,1733058652394,-500.0,0.00028767,3]
[343915647,1733058652403,-500.0,0.00028767,3]
[343915648,1733058652412,-568.65,0.00028767,3]
[343915649,1733058652422,-500.0,0.00028767,3]
[343915650,1733058652432,-163.67894953,0.00028767,3]
[343915651,1733058652442,-500.0,0.00028767,3]
[343915652,1733058652452,-500.0,0.00028767,3]
[343915653,1733058652462,-500.0,0.00028767,3]
[343915654,1733058652471,-500.0,0.00028767,3]
[343915655,1733058652481,-500.0,0.00028767,3]
[343915656,1733058652491,-508.24,0.00028767,3]
[343915657,1733058652500,-515.54626672,0.00028767,3]
[343915658,1733058652509,-500.0,0.00028767,3]
[343915659,1733058652519,-532.45006225,0.00028767,3]
[343915660,1733058652530,-500.0,0.00028767,3]
[343915661,1733058652544,-500.0,0.00028767,2]
[343915662,1733058652554,-500.0,0.00028767,3]
[343915663,1733058652564,-244.252344,0.00028793,2]
[343915664,1733058652573,-152.657715,0.00028793,2]
[343915665,1733058652583,-152.657716,0.00028793,2]
[343915666,1733058652593,-1035.1731449,0.00028854,2]
[343915667,1733058652603,-153.575459,0.00028884,2]
[343915668,1733058652612,-3200.0,0.00028897,2]
[343915669,1733058652622,-151.0,0.00028897,2]
[343915670,1733058652631,-511.56259699,0.00028925,3]
[343915671,1733058652640,-1521.573,0.00029,15]
[343915672,1733058652650,-4921.33679497,0.00029,5]
[343915673,1733058652660,-374.8,0.00029,120]
[343915674,1733058652670,-161.0,0.00029,2]
[343915675,1733058652679,-400.292894,0.00029,2]
[343915676,1733058652688,-250.610952,0.00029,2]
[343915677,1733058652698,-160.0,0.0002901,4]
[343915678,1733058652707,-886.24367263,0.00029027,2]
[343915679,1733058652717,-150.2,0.00029041,7]
[343915680,1733058652727,-500.0,0.00029041,3]
[343915681,1733058652736,-500.0,0.00029041,3]
[343915682,1733058652745,-500.0,0.00029041,3]
[343915683,1733058652755,-373.83100839,0.00029041,3]
[343915684,1733058652765,-500.0,0.00029041,3]
[343915685,1733058652775,-973.19,0.00029041,3]
[343915686,1733058652786,-500.0,0.00029041,3]
[343915687,1733058652795,-850.06,0.00029041,3]
[343915688,1733058652805,-571.83,0.00029041,3]
[343915689,1733058652814,-500.0,0.00029041,3]
[343915690,1733058652824,-500.0,0.00029041,3]
[343915691,1733058652834,-500.0,0.00029041,3]
[343915692,1733058652843,-500.0,0.00029041,3]
[343915693,1733058652852,-500.0,0.00029041,3]
[343915694,1733058652861,-500.0,0.00029041,3]
[343915695,1733058652870,-560.72,0.00029041,3]
[343915696,1733058652879,-500.0,0.00029041,3]
[343915697,1733058652889,-500.0,0.00029041,3]
[343915698,1733058652899,-500.0,0.00029041,3]
[343915699,1733058652908,-931.98,0.00029041,3]
[343915700,1733058652918,-726.01,0.00029041,3]
[343915701,1733058652927,-990.72,0.00029041,3]
[343915702,1733058652937,-500.0,0.00029041,3]
[343915703,1733058652947,-506.91,0.00029041,3]
[343915704,1733058652956,-500.0,0.00029041,3]
[343915705,1733058652966,-500.0,0.00029041,3]
[343915706,1733058652976,-500.0,0.00029041,3]
[343915707,1733058652986,-500.0,0.00029041,3]
[343915708,1733058652995,-500.0,0.00029041,3]
[343915709,1733058653005,-1077.88,0.00029041,3]
[343915710,1733058653015,-500.0,0.00029041,3]
[343915711,1733058653099,-200.0,0.00029041,3]
[343915712,1733058653110,-500.0,0.00029041,3]
[343915713,1733058653121,-500.0,0.00029041,3]
[343915714,1733058653131,-500.0,0.00029041,3]
[343915715,1733058653140,-521.71035774,0.00029041,3]
[343915716,1733058653150,-500.0,0.00029041,3]
[343915717,1733058653159,-500.0,0.00029041,3]
[343915718,1733058653169,-152.77941869,0.00029041,3]
[343915719,1733058653178,-500.0,0.00029041,3]
[343915720,1733058653188,-500.0,0.00029041,3]
[343915721,1733058653197,-500.0,0.00029041,3]
[343915722,1733058653207,-500.0,0.00029041,3]
[343915723,1733058653216,-500.0,0.00029041,3]
[343915724,1733058653226,-500.0,0.00029041,3]
[343915725,1733058653235,-500.0,0.00029041,3]
[343915726,1733058653245,-500.0,0.00029041,3]
[343915727,1733058653255,-500.0,0.00029041,3]
[343915728,1733058653264,-500.0,0.00029041,3]
[343915729,1733058653273,-792.5,0.00029041,3]
[343915730,1733058653284,-500.0,0.00029041,3]
[343915731,1733058653294,-534.34,0.00029041,3]
[343915732,1733058653303,-500.0,0.00029041,3]
[343915733,1733058653313,-500.0,0.00029041,3]
[343915734,1733058653323,-602.34233145,0.00029041,3]
[343915735,1733058653332,-522.41553553,0.00029041,3]
[343915736,1733058653341,-673.25,0.00029041,3]
[343915737,1733058653351,-635.8991276,0.00029041,3]
[343915738,1733058653360,-500.0,0.00029041,3]
[343915739,1733058653370,-42362.14,0.00029041,3]
[343915740,1733058653379,-500.0,0.00029041,3]
[343915741,1733058653389,-151.0,0.00029041,7]
[343915742,1733058653398,-500.0,0.00029041,3]
[343915743,1733058653408,-500.0,0.00029041,3]
[343915744,1733058653417,-500.0,0.00029041,3]
[343915745,1733058653426,-500.0,0.00029041,3]
[343915746,1733058653436,-592.12,0.00029041,3]
[343915747,1733058653446,-506.02187709,0.00029041,3]
[343915748,1733058653455,-1267.84,0.00029041,3]
[343915749,1733058653464,-170.86,0.00029041,3]
[343915750,1733058653473,-589.66,0.00029041,3]
[343915751,1733058653483,-500.0,0.00029041,3]
[343915752,1733058653492,-500.0,0.00029041,3]
[343915753,1733058653502,-500.0,0.00029041,3]
[343915754,1733058653511,-568.65,0.00029041,3]
[343915755,1733058653520,-391.16654922,0.00029041,3]
[343915756,1733058653531,-500.0,0.00029041,3]
[343915757,1733058653540,-500.0,0.00029041,3]
[343915758,1733058653549,-500.0,0.00029041,3]
[343915759,1733058653559,-500.0,0.00029041,3]
[343915760,1733058653568,-508.24,0.00029041,3]
[343915761,1733058653578,-500.0,0.00029041,3]
[343915762,1733058653588,-500.0,0.00029041,3]
[343915763,1733058653599,-500.0,0.00029041,2]
[343915764,1733058653609,-193.01167611,0.00029041,3]
[343915765,1733058653618,-1035.1731449,0.00029099,2]
[343915766,1733058653628,-479.75,0.000291,31]
[343915767,1733058653637,-479.75,0.000291,31]
[343915768,1733058653646,-479.75,0.000291,31]
[343915769,1733058653655,-479.75,0.000291,31]
[343915770,1733058653665,-479.75,0.000291,31]
[343915771,1733058653675,-479.75,0.000291,31]
[343915772,1733058653684,-479.75,0.000291,31]
[343915773,1733058653694,-479.75,0.000291,31]
[343915774,1733058653704,-479.75,0.000291,31]
[343915775,1733058653713,-479.75,0.000291,31]
[343915776,1733058653723,-479.75,0.000291,31]
[343915777,1733058653733,-479.75,0.000291,31]
[343915778,1733058653743,-479.75,0.000291,31]
[343915779,1733058653753,-479.75,0.000291,31]
[343915780,1733058653763,-479.75,0.000291,31]
[343915781,1733058653772,-479.75,0.000291,31]
[343915782,1733058653783,-479.75,0.000291,31]
[343915783,1733058653792,-479.75,0.000291,31]
[343915784,1733058653802,-479.75,0.000291,31]
[343915785,1733058653812,-479.75,0.000291,31]
[343915786,1733058653822,-479.75,0.000291,31]
[343915787,1733058653831,-479.75,0.000291,31]
[343915788,1733058653841,-479.75,0.000291,31]
[343915789,1733058653851,-479.75,0.000291,31]
[343915790,1733058653860,-235.58115706,0.00029315,7]
[343915791,1733058653870,-500.0,0.00029315,3]
[343915792,1733058653879,-500.0,0.00029315,3]
[343915793,1733058653888,-500.0,0.00029315,3]
[343915794,1733058653898,-282.05716843,0.00029315,3]
[343915795,1733058653908,-973.19,0.00029315,3]
[343915796,1733058653918,-500.0,0.00029315,3]
[343915797,1733058653927,-850.06,0.00029315,3]
[343915798,1733058653936,-571.83,0.00029315,3]
[343915799,1733058653946,-500.0,0.00029315,3]
[343915800,1733058653956,-500.0,0.00029315,3]
[343915801,1733058653966,-500.0,0.00029315,3]
[343915802,1733058653977,-394.72107609,0.00029315,3]
[343915803,1733058653987,-500.0,0.00029315,3]
[343915804,1733058653997,-500.0,0.00029315,3]
[343915805,1733058654007,-560.72,0.00029315,3]
[343915806,1733058654015,-500.0,0.00029315,3]
[343915807,1733058654025,-500.0,0.00029315,3]
[343915808,1733058654037,-500.0,0.00029315,3]
[343915809,1733058654049,-931.98,0.00029315,3]
[343915810,1733058654059,-726.01,0.00029315,3]
[343915811,1733058654069,-990.72,0.00029315,3]
[343915812,1733058654078,-500.0,0.00029315,3]
[343915813,1733058654089,-506.91,0.00029315,3]
[343915814,1733058654098,-500.0,0.00029315,3]
[343915815,1733058654108,-500.0,0.00029315,3]
[343915816,1733058654119,-500.0,0.00029315,3]
[343915817,1733058654128,-500.0,0.00029315,3]
[343915818,1733058654137,-500.0,0.00029315,3]
[343915819,1733058654146,-1077.88,0.00029315,3]
[343915820,1733058654156,-500.0,0.00029315,3]
[343915821,1733058654166,-200.0,0.00029315,3]
[343915822,1733058654176,-500.0,0.00029315,3]
[343915823,1733058654186,-500.0,0.00029315,3]
[343915824,1733058654195,-500.0,0.00029315,3]
[343915825,1733058654205,-500.0,0.00029315,3]
[343915826,1733058654214,-500.0,0.00029315,3]
[343915827,1733058654223,-500.0,0.00029315,3]
[343915828,1733058654233,-500.0,0.00029315,3]
[343915829,1733058654243,-500.0,0.00029315,3]
[343915830,1733058654253,-500.0,0.00029315,3]
[343915831,1733058654262,-500.0,0.00029315,3]
[343915832,1733058654272,-500.0,0.00029315,3]
[343915833,1733058654283,-226.2705563,0.00029315,3]
[343915834,1733058654292,-500.0,0.00029315,3]
[343915835,1733058654301,-626.80372378,0.00029315,3]
[343915836,1733058654311,-500.0,0.00029315,3]
[343915837,1733058654320,-792.5,0.00029315,3]
[343915838,1733058654329,-586.52079718,0.00029315,3]
[343915839,1733058654339,-534.34,0.00029315,3]
[343915840,1733058654348,-410.99089099,0.00029315,3]
[343915841,1733058654357,-500.0,0.00029315,3]
[343915842,1733058654367,-673.25,0.00029315,3]
[343915843,1733058654376,-639.11846558,0.00029315,3]
[343915844,1733058654386,-42362.14,0.00029315,3]
[343915845,1733058654396,-500.0,0.00029315,3]
[343915846,1733058654405,-500.0,0.00029315,3]
[343915847,1733058654415,-500.0,0.00029315,3]
[343915848,1733058654424,-500.0,0.00029315,3]
[343915849,1733058654434,-500.0,0.00029315,3]
[343915850,1733058654444,-592.12,0.00029315,3]
[343915851,1733058654453,-1267.84,0.00029315,3]
[343915852,1733058654463,-589.66,0.00029315,3]
[343915853,1733058654473,-500.0,0.00029315,3]
[343915854,1733058654482,-323.30852237,0.00029315,3]
[343915855,1733058654491,-500.0,0.00029315,3]
[343915856,1733058654501,-568.65,0.00029315,3]
[343915857,1733058654511,-500.0,0.00029315,3]
[343915858,1733058654520,-483.06194721,0.00029315,3]
[343915859,1733058654530,-500.0,0.00029315,3]
[343915860,1733058654540,-500.0,0.00029315,3]
[343915861,1733058654550,-508.24,0.00029315,3]
[343915862,1733058654559,-500.0,0.00029315,3]
[343915863,1733058654568,-500.0,0.00029315,3]
[343915864,1733058654578,-500.0,0.00029315,2]
[343915865,1733058654588,-150.0,0.00029331,120]
[343915866,1733058654598,-1035.1731449,0.00029345,2]
[343915867,1733058654607,-400.292894,0.0002935,2]
[343915868,1733058654616,-250.610952,0.0002935,2]
[343915869,1733058654625,-153.575459,0.0002935,2]
[343915870,1733058654635,-886.24367263,0.0002946,2]
[343915871,1733058654644,-151.0,0.00029481,7]
[343915872,1733058654653,-300.0,0.000295,2]
[343915873,1733058654663,-46815.64479194,0.000295,120]
[343915874,1733058654742,-510.14,0.00027671,3]
[343915875,1733058654751,-47464.23305637,0.000295,120]
[343915876,1733058654763,-23497.72374671,0.000295,120]
[343915877,1733058654774,-316.60788963,0.000295,120]
[343915878,1733058680339,2866.0,0.00026,60]
[343915879,1733058968314,288.3327164,0.00013973,2]
[343915884,1733059536126,-1169.27083333,0.0002,2]
[343915885,1733059536147,-19.94342692,0.00023556,2]
[343915886,1733059548098,-480.05657308,0.00023556,2]
[343915887,1733059548119,-501.03635572,0.00024734,2]
[343915888,1733059548140,-167.8340197,0.00025919,2]
[343915889,1733059548163,-6.68886716,0.00026281,2]
[343915892,1733059633085,-204.82615347,0.0002,2]
[343915894,1733059747090,-1141.94751291,0.0002,2]
[343915933,1733059831748,217.28993465,0.00026,60]
[343915952,1733059832361,171.245585,0.00013973,2]
[343915974,1733059838675,-974.66840636,0.0002,2]
[343915993,1733059840684,-194.60242697,0.0002,2]
[343915994,1733059840695,-379.89757403,0.000255,2]
[343915995,1733059840711,-1190.96,0.000255,2]
[343916040,1733059843716,-429.14242597,0.000255,2]
[343916041,1733059843726,-2000.0,0.00026,2]
[343916042,1733059843735,-2937.6193518,0.00026112,2]
[343916043,1733059843745,-171.245585,0.00026274,2]
[343916044,1733059843754,-1000.0,0.000265,2]
[343916045,1733059843763,-2000.0,0.00027,5]
[343916046,1733059843772,-531.0,0.00027338,2]
[343916047,1733059843782,-859.81,0.00027387,10]
[343916048,1733059843791,-500.0,0.00027396,2]
[343916049,1733059843801,-500.0,0.00027396,2]
[343916050,1733059843810,-166.22795991,0.00027396,2]
[343916051,1733059843819,-202.1139254,0.00027397,2]
[343916052,1733059843828,-660.48,0.00027397,3]
[343916053,1733059843837,-500.0,0.00027397,3]
[343916054,1733059843847,-500.0,0.00027397,3]
[343916055,1733059843856,-500.0,0.00027397,3]
[343916056,1733059843865,-452.77548449,0.00027397,3]
[343916057,1733059843875,-500.0,0.00027397,3]
[343916058,1733059843884,-500.0,0.00027397,3]
[343916059,1733059843893,-500.0,0.00027397,3]
[343916061,1733059843902,-500.0,0.00027397,3]
[343916063,1733059843912,-500.0,0.00027397,3]
[343916065,1733059843921,-500.0,0.00027397,3]
[343916066,1733059843931,-500.0,0.00027397,3]
[343916067,1733059843939,-500.0,0.00027397,3]
[343916069,1733059843949,-259.90684779,0.00027397,3]
[343916071,1733059843958,-500.0,0.00027397,3]
[343916072,1733059843967,-500.0,0.00027397,3]
[343916073,1733059843977,-512.25791783,0.00027397,3]
[343916074,1733059843987,-500.0,0.00027397,3]
[343916075,1733059843996,-500.0,0.00027397,3]
[343916076,1733059844006,-500.0,0.00027397,3]
[343916077,1733059844016,-500.0,0.00027397,3]
[343916078,1733059844025,-500.0,0.00027397,3]
[343916079,1733059844035,-500.0,0.00027397,3]
[343916080,1733059844044,-500.0,0.00027397,3]
[343916081,1733059844054,-621.32,0.00027397,3]
[343916082,1733059844065,-500.0,0.00027397,3]
[343916083,1733059844075,-500.0,0.00027397,3]
[343916084,1733059844084,-500.0,0.00027397,3]
[343916085,1733059844094,-500.0,0.00027397,3]
[343916086,1733059844104,-500.0,0.00027397,3]
[343916087,1733059844114,-500.0,0.00027397,3]
[343916088,1733059844123,-333.23658454,0.00027397,3]
[343916089,1733059844132,-500.0,0.00027397,3]
[343916090,1733059844141,-845.23,0.00027397,3]
[343916091,1733059844151,-718.59,0.00027397,3]
[343916092,1733059844160,-500.0,0.00027397,3]
[343916093,1733059844169,-500.0,0.00027397,3]
[343916094,1733059844179,-500.0,0.00027397,3]
[343916095,1733059844188,-500.0,0.00027397,3]
[343916096,1733059844198,-500.0,0.00027397,3]
[343916097,1733059844210,-186.90304671,0.00027397,3]
[343916098,1733059844219,-500.0,0.00027397,3]
[343916099,1733059844228,-500.0,0.00027397,3]
[343916100,1733059844238,-500.0,0.00027397,3]
[343916101,1733059844247,-500.0,0.00027397,3]
[343916102,1733059844256,-528.33,0.00027397,3]
[343916103,1733059844266,-500.0,0.00027397,3]
[343916104,1733059844275,-495.71835337,0.00027397,3]
[343916105,1733059844285,-500.0,0.00027397,3]
[343916106,1733059844294,-500.0,0.00027397,3]
[343916107,1733059844304,-500.0,0.00027397,3]
[343916108,1733059844313,-500.0,0.00027397,3]
[343916109,1733059844322,-500.0,0.00027397,3]
[343916110,1733059844331,-500.0,0.00027397,3]
[343916111,1733059844340,-500.0,0.00027397,3]
[343916112,1733059844350,-500.0,0.00027397,3]
[343916113,1733059844359,-500.0,0.00027397,3]
[343916114,1733059844369,-500.0,0.00027397,3]
[343916115,1733059844379,-500.0,0.00027397,3]
[343916116,1733059844388,-313.52652812,0.00027397,3]
[343916117,1733059844397,-500.0,0.00027397,3]
[343916118,1733059844407,-270.99484088,0.00027397,3]
[343916119,1733059844417,-1169.27083333,0.00027397,3]
[343916120,1733059844428,-1169.27083333,0.00027397,3]
[343916121,1733059844439,-1169.27083333,0.00027397,3]
[343916122,1733059844449,-500.0,0.00027397,3]
[343916123,1733059844459,-500.0,0.00027397,3]
[343916124,1733059844468,-500.0,0.00027397,3]
[343916125,1733059844479,-500.0,0.00027397,3]